bitfinex/quotes_BTCUSD_20240719
["timestamp","ask_amount","ask_price","bid_price","bid_amount"]
[1721400292166,0.00836,65684.0,65683.0,1.90665684]
[1721400292413,0.00836,65684.0,65683.0,1.92468175]
[1721400292640,0.00836,65684.0,65683.0,1.80665684]
[1721400293115,0.00836,65684.0,65683.0,1.79665684]
[1721400293358,0.00836,65684.0,65683.0,1.5822751]
[1721400293598,0.00836,65684.0,65683.0,1.2777831]
[1721400293889,0.00836,65684.0,65683.0,1.2917831]
[1721400294100,0.00836,65684.0,65683.0,0.9872911]
[1721400294317,0.00836,65684.0,65683.0,0.91029141]
[1721400294528,0.00836,65684.0,65683.0,0.92429141]
[1721400296718,0.00836,65684.0,65683.0,0.16306141]
[1721400297153,0.00836,65684.0,65683.0,0.16307005]
[1721400297375,0.00836,65684.0,65683.0,0.31531605]
[1721400297583,0.00836,65684.0,65683.0,0.61980805]
[1721400298643,0.00836,65684.0,65683.0,0.92430005]
[1721400298852,0.00836,65684.0,65683.0,1.22879205]
[1721400299065,0.00836,65684.0,65683.0,1.30389205]
[1721400300339,0.00836,65684.0,65683.0,1.41418575]
[1721400300778,0.00836,65684.0,65683.0,1.2878003]
[1721400300987,0.00836,65684.0,65683.0,1.71867385]
[1721400301618,0.00836,65684.0,65683.0,1.82305559]
[1721400302515,0.00836,65684.0,65683.0,1.69667404]
[1721400302762,0.00836,65684.0,65683.0,1.3038743]
[1721400303412,0.00836,65684.0,65683.0,0.3152983]
[1721400303862,0.00836,65684.0,65683.0,0.9242823]
[1721400304299,0.00836,65684.0,65683.0,0.6197903]
[1721400304510,0.00836,65684.0,65683.0,0.9242823]
[1721400306559,0.00836,65684.0,65683.0,1.3747743]
[1721400306982,0.00836,65684.0,65683.0,1.3115743]
[1721400307630,0.00836,65684.0,65683.0,1.2287743]
[1721400308301,0.00836,65684.0,65683.0,1.1024003]
[1721400308538,0.00836,65684.0,65683.0,1.2287855]
[1721400308747,0.48418574,65684.0,65683.0,0.1630635]
[1721400308972,0.17756,65684.0,65683.0,0.0366783]
[1721400309441,0.17756,65684.0,65683.0,0.05557173]
[1721400309646,0.17756,65684.0,65683.0,0.0366783]
[1721400310534,0.17756,65684.0,65683.0,0.0226783]
[1721400310795,0.78867374,65684.0,65683.0,0.0226783]
[1721400311001,0.49829108,65684.0,65683.0,0.0086783]
[1721400311208,0.48418574,65684.0,65683.0,0.0116783]
[1721400311442,0.49829183,65684.0,65683.0,0.0116783]
[1721400311920,0.80277983,65684.0,65683.0,0.0116783]
[1721400312150,1.45732713,65684.0,65683.0,0.0116783]
[1721400312397,1.41175583,65684.0,65683.0,0.0146783]
[1721400312635,2.41093085,65684.0,65683.0,0.00600095]
[1721400312864,2.26982782,65684.0,65683.0,0.00600095]
[1721400313109,2.30126449,65684.0,65683.0,0.00600095]
[1721400313337,0.456814,65672.0,65671.0,0.002]
[1721400313576,0.78600183,65672.0,65671.0,0.002]
[1721400314261,0.77189574,65672.0,65671.0,0.002]
[1721400314477,1.09055069,65672.0,65671.0,0.002]
[1721400315342,0.78800769,65672.0,65671.0,0.002]
[1721400315599,0.1627,65672.0,65671.0,0.002]
[1721400315807,0.002,65672.0,65671.0,0.154274]
[1721400316019,0.002,65672.0,65671.0,0.1772214]
[1721400316250,0.002,65672.0,65671.0,0.1782214]
[1721400316460,0.007,65672.0,65671.0,0.1782214]
[1721400316677,0.007,65672.0,65671.0,0.7863174]
[1721400316932,0.007,65672.0,65671.0,1.0908654]
[1721400317161,0.007,65672.0,65671.0,1.66125126]
[1721400317421,0.005,65672.0,65671.0,2.74579926]
[1721400317624,0.005,65672.0,65671.0,2.79579926]
[1721400317856,0.005,65672.0,65671.0,2.841069]
[1721400318088,0.005,65672.0,65671.0,3.10034726]
[1721400318512,0.00836,65684.0,65683.0,1.065722]
[1721400318723,0.00836,65684.0,65683.0,1.53695007]
[1721400319158,0.00836,65684.0,65683.0,1.38256833]
[1721400320060,0.00836,65684.0,65683.0,1.0151592]
[1721400320317,0.00836,65684.0,65683.0,1.3196512]
[1721400320520,0.00836,65684.0,65683.0,1.3336512]
[1721400320738,0.00836,65684.0,65683.0,0.98371699]
[1721400320959,0.00836,65684.0,65683.0,0.90161699]
[1721400321190,0.00836,65684.0,65683.0,0.29263299]
[1721400321411,0.00836,65684.0,65683.0,0.470738]
[1721400321637,0.00836,65684.0,65683.0,0.77523]
[1721400321866,0.00836,65684.0,65683.0,1.22010575]
[1721400322351,0.00836,65684.0,65683.0,0.91561375]
[1721400322579,0.00836,65684.0,65683.0,0.78923]
[1721400322815,0.00836,65684.0,65683.0,1.093722]
[1721400323063,0.00836,65684.0,65683.0,1.22011242]
[1721400323497,0.00836,65684.0,65683.0,1.28111242]
[1721400324587,0.00836,65684.0,65683.0,1.43549416]
[1721400325911,0.00836,65684.0,65683.0,1.30910374]
[1721400326119,0.00836,65684.0,65683.0,1.86766231]
[1721400326328,0.00836,65684.0,65683.0,2.78766231]
[1721400326551,0.00836,65684.0,65683.0,2.85569096]
[1721400326759,0.00836,65684.0,65683.0,2.83766231]
[1721400327002,0.00836,65684.0,65683.0,2.78766231]
[1721400327218,0.00836,65684.0,65683.0,1.91766231]
[1721400327436,0.00836,65684.0,65683.0,1.61317031]
[1721400327864,0.00836,65684.0,65683.0,1.66317031]
[1721400328559,0.00836,65684.0,65683.0,1.61317031]
[1721400328973,0.00836,65684.0,65683.0,1.48680374]
[1721400329181,0.00836,65684.0,65683.0,1.61317292]
[1721400329395,0.00836,65684.0,65683.0,1.66317292]
[1721400329608,0.00836,65684.0,65683.0,1.61317292]
[1721400332012,0.00836,65684.0,65683.0,1.48680374]
[1721400332242,0.00836,65684.0,65683.0,1.6131665]
[1721400332429,0.00836,65684.0,65683.0,1.9176585]
[1721400332683,0.00836,65684.0,65683.0,1.98567677]
[1721400333130,0.00836,65684.0,65683.0,2.6376585]
[1721400333354,0.00836,65684.0,65683.0,2.70567074]
[1721400333608,0.00836,65684.0,65683.0,2.6876585]
[1721400334044,0.00836,65684.0,65683.0,2.69165876]
[1721400334472,0.00836,65684.0,65683.0,2.6736585]
[1721400334694,0.00836,65684.0,65683.0,2.6876585]
[1721400335122,0.00836,65684.0,65683.0,2.68765286]
[1721400336227,0.00836,65684.0,65683.0,2.63765286]
[1721400336662,0.00836,65684.0,65683.0,2.68765286]
[1721400336875,0.00836,65684.0,65683.0,2.63765286]
[1721400337085,0.00836,65684.0,65683.0,2.68765286]
[1721400338163,0.00836,65684.0,65683.0,2.68765538]
[1721400338672,0.00836,65684.0,65683.0,2.68765551]
[1721400339591,0.00836,65684.0,65683.0,1.96765551]
[1721400340251,0.00836,65684.0,65683.0,1.91765551]
[1721400340777,0.00836,65684.0,65683.0,1.96765551]
[1721400341021,0.00836,65684.0,65683.0,1.84129574]
[1721400341498,0.00836,65684.0,65683.0,1.79129574]
[1721400341709,0.00836,65684.0,65683.0,1.91765521]
[1721400341913,0.00836,65684.0,65683.0,1.55216321]
[1721400342880,0.00836,65684.0,65683.0,1.90665521]
[1721400343125,0.00836,65684.0,65683.0,1.85665521]
[1721400343350,0.00836,65684.0,65683.0,1.55216321]
[1721400345002,0.00836,65684.0,65683.0,1.85666231]
[1721400345257,0.00836,65684.0,65683.0,1.55217031]
[1721400345479,0.00836,65684.0,65683.0,1.57016188]
[1721400345699,0.00836,65684.0,65683.0,1.87465388]
[1721400345881,0.00836,65684.0,65683.0,1.85666232]
[1721400346093,0.00836,65684.0,65683.0,1.55217032]
[1721400346308,0.00836,65684.0,65683.0,1.90666232]
[1721400346519,0.00836,65684.0,65683.0,1.60217032]
[1721400347342,0.00836,65684.0,65683.0,2.06461488]
[1721400347813,0.00836,65684.0,65683.0,2.85461488]
[1721400348239,0.00836,65684.0,65683.0,3.10836475]
[1721400348660,0.00836,65684.0,65683.0,3.08033413]
[1721400348920,0.00836,65684.0,65683.0,3.09433413]
[1721400349875,0.00084,65689.0,65688.0,1.42011]
[1721400350111,0.00084,65689.0,65688.0,3.37813013]
[1721400351469,0.00084,65689.0,65688.0,3.39213013]
[1721400351681,0.00084,65689.0,65688.0,3.37809313]
[1721400351900,0.00084,65689.0,65688.0,3.39209313]
[1721400352319,0.00084,65689.0,65688.0,3.40609313]
[1721400352532,0.00084,65689.0,65688.0,3.39209313]
[1721400353164,0.00084,65689.0,65688.0,3.68256213]
[1721400353585,0.00084,65689.0,65688.0,3.69656213]
[1721400354498,0.00084,65689.0,65688.0,3.68256213]
[1721400354711,0.00084,65689.0,65688.0,3.50705283]
[1721400354920,0.00084,65689.0,65688.0,3.71057128]
[1721400355129,0.00084,65689.0,65688.0,3.69657128]
[1721400355571,0.00084,65689.0,65688.0,3.71057128]
[1721400355800,0.00084,65689.0,65688.0,3.7195582]
[1721400356013,0.00084,65689.0,65688.0,4.47083428]
[1721400356226,0.00084,65689.0,65688.0,4.47981675]
[1721400356440,0.00084,65689.0,65688.0,4.85500918]
[1721400356698,0.0001,65700.0,65699.0,1.559281]
[1721400356902,0.0001,65700.0,65699.0,3.25559154]
[1721400357116,0.0001,65700.0,65699.0,3.35834254]
[1721400357377,0.0001,65700.0,65699.0,2.32553911]
[1721400357589,0.0001,65700.0,65699.0,2.07335578]
[1721400357794,0.0001,65700.0,65699.0,2.26283911]
[1721400358009,0.0001,65700.0,65699.0,2.31285416]
[1721400358224,0.0001,65700.0,65699.0,2.1373618]
[1721400358458,0.0001,65700.0,65699.0,1.96103356]
[1721400358672,0.0001,65700.0,65699.0,2.27685304]
[1721400358885,0.0001,65700.0,65699.0,2.08736135]
[1721400359327,0.0001,65700.0,65699.0,2.32685304]
[1721400359536,0.0001,65700.0,65699.0,2.13736135]
[1721400359752,0.0001,65700.0,65699.0,2.15136135]
[1721400360405,0.0001,65700.0,65699.0,2.04835304]
[1721400360609,0.0001,65700.0,65699.0,1.70090879]
[1721400360829,0.0001,65700.0,65699.0,2.62091461]
[1721400361040,0.0001,65700.0,65699.0,2.86341461]
[1721400361263,0.0001,65700.0,65699.0,3.05291503]
[1721400361468,0.0001,65700.0,65699.0,2.86341461]
[1721400361708,0.0001,65700.0,65699.0,3.35733303]
[1721400361923,0.00083,65709.0,65699.0,3.35733303]
[1721400361924,0.00083,65709.0,65708.0,1.369692]
[1721400362137,0.00083,65709.0,65708.0,3.38998377]
[1721400362372,0.00083,65709.0,65708.0,3.90221632]
[1721400362631,0.00834,65721.0,65717.0,1.451507]
[1721400362855,0.00834,65721.0,65717.0,3.84768452]
[1721400363091,0.00834,65721.0,65717.0,3.89768452]
[1721400363310,0.0148752,65722.0,65721.0,1.723738]
[1721400363534,0.08686,65747.0,65721.0,1.723738]
[1721400363535,0.46584271,65742.0,65738.0,0.304238]
[1721400363787,1e-06,65739.0,65738.0,3.64847784]
[1721400364022,0.00836,65747.0,65746.0,1.164703]
[1721400364304,0.0603,65779.0,65754.0,0.81041]
[1721400364527,0.0785,65784.0,65771.0,0.760212]
[1721400364757,0.0655,65785.0,65771.0,2.67159735]
[1721400364968,0.0655,65791.0,65774.0,1.114248]
[1721400365190,0.0655,65791.0,65774.0,1.49496335]
[1721400365414,0.46304871,65793.0,65774.0,2.60885482]
[1721400365640,0.0655,65799.0,65774.0,2.71903435]
[1721400365867,0.46304871,65792.0,65774.0,3.06647689]
[1721400366090,0.46304871,65791.0,65774.0,3.0732989]
[1721400366321,0.46304871,65791.0,65774.0,2.71886913]
[1721400366542,0.46304871,65791.0,65774.0,2.96136913]
[1721400366816,0.46304871,65790.0,65774.0,3.00536941]
[1721400367003,0.0101,65800.0,65774.0,2.96136913]
[1721400367230,0.0101,65800.0,65786.0,1.468072]
[1721400367501,2e-07,65787.0,65786.0,3.01742974]
[1721400367719,0.0101,65800.0,65799.0,1.367797]
[1721400367950,0.0101,65800.0,65799.0,0.58210039]
[1721400368173,0.0101,65800.0,65786.0,0.2899]
[1721400368174,0.3171,65800.0,65795.0,0.01787638]
[1721400368393,0.07717479,65796.0,65783.0,0.32190538]
[1721400368602,0.07717479,65784.0,65783.0,0.48823254]
[1721400368836,0.07717479,65784.0,65783.0,0.31038582]
[1721400369044,0.07717479,65784.0,65783.0,0.03219054]
[1721400369487,0.2425,65791.0,65784.0,0.304024]
[1721400369728,0.002794,65790.0,65789.0,0.456001]
[1721400369969,0.00018346,65804.0,65799.0,0.455932]
[1721400370199,0.0101,65800.0,65799.0,1.077842]
[1721400370438,0.0101,65800.0,65799.0,1.35837719]
[1721400370674,0.0101,65800.0,65799.0,1.39436641]
[1721400370912,0.0101,65800.0,65799.0,1.04041141]
[1721400371138,0.0101,65800.0,65790.0,0.1]
[1721400371379,0.0101,65800.0,65789.0,0.05019887]
[1721400371380,0.0101,65800.0,65796.0,0.151983]
[1721400371611,0.0101,65800.0,65799.0,0.014]
[1721400371876,0.0101,65800.0,65774.0,0.06790289]
[1721400371877,0.139,65799.0,65774.0,0.06790289]
[1721400372092,0.139,65799.0,65770.0,0.1317]
[1721400372093,0.07717479,65784.0,65777.0,0.152027]
[1721400372317,0.07717479,65784.0,65769.0,0.152046]
[1721400372532,0.07717479,65784.0,65771.0,0.152042]
[1721400372533,0.164794,65783.0,65771.0,0.152042]
[1721400372772,0.141794,65783.0,65772.0,0.00304064]
[1721400372980,0.141794,65783.0,65776.0,0.152029]
[1721400373230,0.141794,65783.0,65777.0,0.0152029]
[1721400373445,0.07717479,65777.0,65755.0,0.15438174]
[1721400373668,0.002794,65776.0,65769.0,0.152046]
[1721400373906,0.002794,65776.0,65771.0,0.001]
[1721400374786,0.002794,65776.0,65775.0,0.456099]
[1721400375009,0.139,65783.0,65780.0,0.152019]
[1721400375245,0.0616,65783.0,65782.0,0.152017]
[1721400375682,0.0616,65783.0,65782.0,0.5016574]
[1721400375898,0.0616,65783.0,65782.0,0.0456064]
[1721400376106,0.0616,65783.0,65776.0,0.304061]
[1721400376317,0.07717479,65781.0,65767.0,0.04737803]
[1721400376538,0.002794,65780.0,65775.0,0.152033]
[1721400376763,0.07717479,65781.0,65762.0,0.304123]
[1721400376764,0.0777,65773.0,65762.0,0.304123]
[1721400377010,0.002794,65772.0,65762.0,0.304123]
[1721400377214,0.002794,65772.0,65765.0,0.152055]
[1721400377424,0.002794,65772.0,65758.0,0.45852574]
[1721400377425,0.002794,65772.0,65767.0,0.152051]
[1721400377644,0.002794,65772.0,65768.0,0.152049]
[1721400378343,0.025794,65772.0,65762.0,0.011]
[1721400378561,0.07717479,65766.0,65762.0,0.011]
[1721400378777,0.45143274,65765.0,65762.0,0.011]
[1721400378986,0.023,65764.0,65762.0,0.011]
[1721400379201,0.002794,65763.0,65762.0,0.011]
[1721400379908,0.304794,65763.0,65762.0,0.011]
[1721400380121,0.025794,65763.0,65762.0,0.011]
[1721400380331,0.304794,65763.0,65762.0,0.009]
[1721400380555,0.302,65763.0,65762.0,0.009]
[1721400380773,0.07717479,65774.0,65762.0,0.009]
[1721400380994,0.0799,65776.0,65769.0,0.152045]
[1721400380995,0.0613,65771.0,65769.0,0.152045]
[1721400381207,0.0613,65771.0,65770.0,0.0456156]
[1721400381416,0.3633,65771.0,65770.0,0.0456156]
[1721400381628,0.3633,65771.0,65770.0,0.8058406]
[1721400381629,0.0613,65771.0,65770.0,0.8058406]
[1721400381856,0.0613,65771.0,65770.0,0.62796825]
[1721400382079,0.0613,65771.0,65770.0,0.8058406]
[1721400382290,0.0799,65776.0,65773.0,0.152037]
[1721400382506,0.002794,65775.0,65774.0,0.456106]
[1721400382728,0.002794,65776.0,65775.0,0.456099]
[1721400382941,0.302,65786.0,65775.0,0.304066]
[1721400382942,0.0641,65783.0,65775.0,0.304066]
[1721400383163,0.002794,65782.0,65779.0,0.304044]
[1721400383371,0.002794,65782.0,65781.0,0.456058]
[1721400383579,0.0641,65783.0,65782.0,0.152017]
[1721400383791,0.0641,65783.0,65782.0,0.18772243]
[1721400384001,0.0641,65783.0,65782.0,0.49175643]
[1721400384428,0.302,65786.0,65785.0,0.45603]
[1721400385072,0.302,65786.0,65783.0,0.152013]
[1721400385282,0.07996879,65785.0,65784.0,0.58223851]
[1721400385488,0.07717479,65785.0,65784.0,0.58223851]
[1721400386016,0.0647,65789.0,65784.0,0.15888549]
[1721400386017,0.002,65789.0,65784.0,0.15888549]
[1721400386269,0.002,65789.0,65788.0,0.760015]
[1721400386513,0.002,65789.0,65788.0,1.19022251]
[1721400387251,0.002,65789.0,65788.0,1.64858219]
[1721400387928,0.002,65789.0,65788.0,1.66258219]
[1721400388152,0.002,65789.0,65788.0,1.69828762]
[1721400388390,0.002,65789.0,65788.0,1.68428762]
[1721400388630,0.002,65789.0,65788.0,1.8735478]
[1721400388859,0.002,65789.0,65788.0,1.93710117]
[1721400389077,0.002,65789.0,65788.0,1.8875478]
[1721400389291,0.002,65789.0,65788.0,2.3415538]
[1721400389511,0.002,65789.0,65788.0,2.08710117]
[1721400389935,0.002,65789.0,65788.0,2.0375478]
[1721400390156,0.002,65789.0,65788.0,2.03710117]
[1721400390369,0.002,65789.0,65788.0,2.04972204]
[1721400390781,0.002,65789.0,65788.0,2.06372204]
[1721400391210,0.002,65789.0,65788.0,2.05107541]
[1721400391672,0.002,65789.0,65788.0,2.00152204]
[1721400391921,0.002,65789.0,65788.0,1.98752204]
[1721400392199,0.002,65789.0,65788.0,2.03752204]
[1721400392435,0.002,65789.0,65788.0,2.10152204]
[1721400392858,0.002,65789.0,65788.0,1.23897624]
[1721400393077,0.002,65789.0,65788.0,1.50742887]
[1721400393294,0.002,65789.0,65788.0,1.96584379]
[1721400393749,0.002,65789.0,65788.0,1.63640874]
[1721400393969,0.002,65789.0,65788.0,1.96584559]
[1721400394189,0.002,65789.0,65788.0,1.10345185]
[1721400394399,0.002,65789.0,65788.0,1.07545185]
[1721400394627,0.002,65789.0,65788.0,0.48143985]
[1721400394960,0.002,65789.0,65788.0,1.08945185]
[1721400395213,0.002,65789.0,65788.0,1.39345785]
[1721400395412,0.002,65789.0,65788.0,1.40745785]
[1721400395818,0.002,65789.0,65788.0,1.37945785]
[1721400396275,0.002,65789.0,65788.0,1.39045785]
[1721400396484,0.002,65789.0,65788.0,1.39048523]
[1721400396682,0.002,65789.0,65788.0,1.37948523]
[1721400397022,0.002,65789.0,65788.0,0.78547323]
[1721400397240,0.002,65789.0,65788.0,0.34146423]
[1721400397616,0.1433,65789.0,65788.0,0.14018569]
[1721400398034,0.1663,65789.0,65788.0,0.15218569]
[1721400398241,0.1663,65789.0,65788.0,0.12618569]
[1721400398691,0.1663,65789.0,65788.0,0.14918569]
[1721400398895,0.47268274,65789.0,65788.0,0.14918569]
[1721400399094,0.47268274,65789.0,65780.0,0.01797786]
[1721400399095,0.152019,65782.0,65780.0,0.01797786]
[1721400399299,0.152019,65782.0,65777.0,0.01797786]
[1721400399300,0.506079,65778.0,65777.0,0.01797786]
[1721400399529,0.420499,65768.0,65765.0,0.017992]
[1721400399766,0.37917479,65766.0,65753.0,0.152083]
[1721400400078,0.37917479,65766.0,65749.0,0.017992]
[1721400400079,0.07717479,65757.0,65749.0,0.017992]
[1721400400257,0.17738174,65765.0,65754.0,0.152081]
[1721400400481,0.07717479,65759.0,65752.0,0.152086]
[1721400400697,0.07717479,65759.0,65739.0,0.0765]
[1721400400698,0.17738174,65765.0,65751.0,0.017992]
[1721400400912,0.17738174,65765.0,65739.0,0.1265]
[1721400400913,0.07717479,65766.0,65761.0,0.152063]
[1721400401122,0.07717479,65766.0,65761.0,0.0152063]
[1721400402000,0.37917479,65773.0,65761.0,0.0152063]
[1721400402209,0.062994,65776.0,65761.0,0.0152063]
[1721400402417,0.062994,65776.0,65775.0,0.152033]
[1721400402635,0.0602,65782.0,65775.0,0.045611]
[1721400402839,0.002794,65781.0,65780.0,0.152021]
[1721400403043,0.07996879,65788.0,65781.0,0.304035]
[1721400403247,0.07996879,65788.0,65785.0,0.152009]
[1721400403454,0.07996879,65788.0,65773.0,0.0604]
[1721400403455,0.07996879,65788.0,65787.0,0.152005]
[1721400403660,0.07717479,65788.0,65785.0,0.152009]
[1721400403967,0.002794,65787.0,65782.0,0.152016]
[1721400404160,0.002794,65787.0,65780.0,0.304043]
[1721400404592,0.002794,65787.0,65778.0,0.01797634]
[1721400404593,0.002794,65787.0,65786.0,0.152008]
[1721400404880,0.002794,65788.0,65785.0,0.152008]
[1721400405087,0.07717479,65786.0,65785.0,0.15201]
[1721400405294,0.002,65789.0,65788.0,0.152003]
[1721400405508,0.002,65789.0,65788.0,0.760015]
[1721400406844,0.002,65789.0,65788.0,0.764015]
[1721400407805,0.002,65789.0,65788.0,0.460009]
[1721400408259,0.003,65789.0,65788.0,0.466009]
[1721400408431,0.003,65789.0,65788.0,0.770015]
[1721400408873,0.003,65789.0,65788.0,0.914515]
[1721400409099,0.003,65789.0,65788.0,1.08286026]
[1721400409291,0.003,65789.0,65788.0,1.50008147]
[1721400409469,0.003,65789.0,65788.0,1.68937545]
[1721400410054,0.003,65789.0,65788.0,0.97429373]
[1721400410307,0.003,65789.0,65788.0,0.98029373]
[1721400410805,0.002,65789.0,65788.0,0.96829373]
[1721400411296,0.002,65789.0,65788.0,0.97529373]
[1721400411611,0.002,65789.0,65788.0,1.42668147]
[1721400411848,0.002,65789.0,65788.0,1.43168387]
[1721400412277,0.002,65789.0,65788.0,1.30550274]
[1721400412487,0.002,65789.0,65788.0,1.55786589]
[1721400412926,0.002,65789.0,65788.0,1.25385989]
[1721400413179,0.002,65789.0,65788.0,1.40348415]
[1721400413384,0.002,65789.0,65788.0,1.09947815]
[1721400414007,0.002,65789.0,65788.0,1.10547815]
[1721400414247,0.002,65789.0,65788.0,1.40948415]
[1721400414461,0.002,65789.0,65788.0,1.40348415]
[1721400414898,0.002,65789.0,65788.0,1.40348443]
[1721400415119,0.002,65789.0,65788.0,0.25736343]
[1721400415120,0.0636,65789.0,65788.0,0.25736343]
[1721400415378,0.0636,65789.0,65788.0,0.13118158]
[1721400415585,0.36998274,65789.0,65788.0,0.13718158]
[1721400415796,0.69698474,65789.0,65788.0,0.13718158]
[1721400416666,0.87865953,65789.0,65788.0,0.13718158]
[1721400416884,0.82865953,65789.0,65788.0,0.13718158]
[1721400417125,0.87865953,65789.0,65788.0,0.13718158]
[1721400417350,0.87865953,65789.0,65788.0,0.12618158]
[1721400417594,0.88165953,65789.0,65788.0,0.12618158]
[1721400417765,1.33912758,65789.0,65788.0,0.12618158]
[1721400417999,1.33812758,65789.0,65788.0,0.12618158]
[1721400418169,1.79612958,65789.0,65788.0,0.12718158]
[1721400418465,1.44812758,65789.0,65788.0,0.12818158]
[1721400418674,1.39812758,65789.0,65788.0,0.12818158]
[1721400418887,1.39212758,65789.0,65788.0,0.12718158]
[1721400419168,1.48612758,65789.0,65788.0,0.12618158]
[1721400419561,0.152041,65772.0,65741.0,0.05]
[1721400419778,0.302,65769.0,65761.0,0.152064]
[1721400419967,0.302,65769.0,65755.0,0.304157]
[1721400420120,0.023,65768.0,65760.0,0.152067]
[1721400420328,0.023,65768.0,65760.0,0.0456224]
[1721400420548,0.023,65768.0,65746.0,0.3042]
[1721400420775,0.13827479,65780.0,65755.0,0.15742291]
[1721400420985,0.023,65779.0,65755.0,0.15438174]
[1721400421152,0.07717479,65773.0,65766.0,0.152053]
[1721400421516,0.37917479,65773.0,65760.0,0.304133]
[1721400421671,0.07717479,65764.0,65751.0,0.0612]
[1721400421879,0.26090852,65772.0,65754.0,0.0832]
[1721400421880,0.30642274,65772.0,65754.0,0.0832]
[1721400422083,0.07717479,65766.0,65758.0,0.304142]
[1721400422264,0.07717479,65766.0,65755.0,0.001]
[1721400422665,0.07717479,65766.0,65759.0,0.152069]
[1721400422879,0.07717479,65766.0,65755.0,0.001]
[1721400422880,0.3649,65765.0,65755.0,0.001]
[1721400423075,0.07717479,65759.0,65755.0,0.001]
[1721400423446,0.023,65764.0,65756.0,0.152076]
[1721400424215,0.302,65758.0,65754.0,0.003]
[1721400424396,0.302,65758.0,65754.0,0.006]
[1721400424595,0.302,65758.0,65754.0,0.003]
[1721400424799,0.302,65758.0,65750.0,0.152091]
[1721400425178,0.302,65758.0,65756.0,0.018]
[1721400425356,0.023,65757.0,65756.0,0.009]
[1721400425557,0.023,65757.0,65749.0,0.152092]
[1721400425780,0.023,65757.0,65754.0,0.014]
[1721400425980,0.175076,65757.0,65754.0,0.014]
[1721400426195,0.24022112,65756.0,65741.0,0.304223]
[1721400426397,0.302,65750.0,65738.0,0.4737]
[1721400426531,0.07717479,65745.0,65735.0,1.2518]
[1721400426763,0.0605,65749.0,65741.0,0.152111]
[1721400426984,0.17738174,65748.0,65738.0,0.152117]
[1721400427943,0.17738174,65748.0,65739.0,0.152115]
[1721400428282,0.18038174,65748.0,65739.0,0.152115]
[1721400429331,0.18038174,65748.0,65736.0,0.304243]
[1721400429537,0.07717479,65747.0,65735.0,1.2518]
[1721400429862,0.302,65742.0,65737.0,0.152121]
[1721400430035,0.302,65742.0,65733.0,0.30426]
[1721400430241,0.07717479,65740.0,65730.0,0.304271]
[1721400430443,0.302,65735.0,65724.0,0.4737]
[1721400430731,0.302,65735.0,65725.0,0.304296]
[1721400430925,0.302,65735.0,65720.0,1.3277]
[1721400430926,0.302,65735.0,65723.0,0.304307]
[1721400431127,0.07717479,65732.0,65720.0,0.0759]
[1721400431428,0.17738174,65731.0,65722.0,0.152155]
[1721400431837,0.17738174,65731.0,65723.0,0.152153]
[1721400432037,0.17738174,65731.0,65720.0,0.380221]
[1721400432174,0.17738174,65731.0,65721.0,0.152156]
[1721400432385,0.15214,65729.0,65723.0,0.00592223]
[1721400432593,0.17738174,65728.0,65723.0,0.00592223]
[1721400432797,0.152144,65727.0,65723.0,0.00592223]
[1721400433038,0.17738174,65726.0,65723.0,0.00592223]
[1721400433223,0.14077479,65725.0,65723.0,0.01592223]
[1721400433429,0.66083474,65724.0,65723.0,0.01592223]
[1721400433639,0.98583474,65724.0,65723.0,0.01]
[1721400433855,0.63153274,65724.0,65723.0,0.01]
[1721400434051,0.63153274,65724.0,65723.0,0.02]
[1721400434486,0.63153274,65724.0,65719.0,0.00018317]
[1721400434692,0.023,65723.0,65719.0,0.00018317]
[1721400434890,0.15438174,65722.0,65719.0,0.00018317]
[1721400435101,0.023,65721.0,65719.0,0.00018317]
[1721400435300,0.15438174,65720.0,65716.0,0.009174]
[1721400435525,0.023,65719.0,65716.0,0.009174]
[1721400435727,0.17738174,65719.0,65716.0,0.009174]
[1721400435927,0.15438174,65718.0,65716.0,0.009174]
[1721400436125,0.023,65717.0,65716.0,0.009174]
[1721400437439,0.17738174,65717.0,65716.0,0.009174]
[1721400437654,0.34728691,65717.0,65716.0,0.009174]
[1721400437848,0.74928691,65717.0,65716.0,0.009174]
[1721400438072,1.10362191,65717.0,65716.0,0.010174]
[1721400438823,1.40795691,65717.0,65716.0,0.011174]
[1721400439033,1.35795691,65717.0,65716.0,0.011174]
[1721400439236,1.05362191,65717.0,65716.0,0.011174]
[1721400439432,1.03588374,65717.0,65716.0,0.011174]
[1721400439866,1.14888374,65717.0,65716.0,0.011174]
[1721400440078,0.64238174,65717.0,65716.0,0.011174]
[1721400440305,0.34038174,65717.0,65716.0,0.011174]
[1721400440774,0.065,65729.0,65720.0,0.304318]
[1721400440977,0.15438174,65729.0,65726.0,0.304292]
[1721400441183,0.15438174,65729.0,65727.0,0.152144]
[1721400441400,0.0615,65744.0,65721.0,0.0315492]
[1721400441610,0.61516171,65741.0,65729.0,0.152139]
[1721400441823,0.302,65737.0,65723.0,0.304307]
[1721400442046,0.30650674,65736.0,65723.0,0.304307]
[1721400442262,0.30650674,65736.0,65722.0,0.152154]
[1721400442263,0.07717479,65733.0,65722.0,0.152154]
[1721400442472,0.302,65737.0,65716.0,0.009174]
[1721400442473,0.002,65729.0,65716.0,0.009174]
[1721400442690,0.002,65729.0,65728.0,0.456426]
[1721400443212,0.002,65729.0,65728.0,0.76071]
[1721400443421,0.009,65729.0,65728.0,0.76071]
[1721400444107,0.002,65729.0,65728.0,0.76071]
[1721400444314,0.003,65729.0,65728.0,0.76071]
[1721400444526,0.003,65729.0,65728.0,1.02861068]
[1721400444922,0.003,65729.0,65728.0,1.33289468]
[1721400445041,0.001,65729.0,65728.0,1.33289468]
[1721400445449,0.002,65729.0,65728.0,1.02861068]
[1721400445852,0.002,65729.0,65728.0,1.33289468]
[1721400446060,0.00181705,65729.0,65728.0,1.44289468]
[1721400446267,0.00181705,65729.0,65728.0,1.95156042]